bitfinex-derivatives/quotes_SOLF0:USTF0_20250114
["timestamp","ask_amount","ask_price","bid_price","bid_amount"]
[1736822212330,2.7263,183.47,183.4,2.7272]
[1736822212521,18.59546569,183.49,183.4,2.7272]
[1736822212725,2.7264,183.46,183.4,2.7272]
[1736822213327,2.7268,183.44,183.38,2.7275]
[1736822213727,12.83546569,183.46,183.35,7.4338539]
[1736822213929,2.7271,183.41,183.35,2.7279]
[1736822214123,12.83546569,183.43,183.33,29.7354156]
[1736822214328,4.9765,183.42,183.33,29.7354156]
[1736822214638,2.7274,183.39,183.34,2.7281]
[1736822215531,2.7273,183.4,183.34,2.7281]
[1736822215735,2.7273,183.4,183.33,2.7283]
[1736822216937,2.7273,183.4,183.31,120.41764934]
[1736822217135,2.7273,183.4,183.34,2.7281]
[1736822217638,12.83546569,183.4,183.29,29.7354156]
[1736822217832,12.83546569,183.37,183.29,7.4338539]
[1736822218537,2.728,183.35,183.29,7.4338539]
[1736822219038,2.728,183.35,183.25,4.62210871]
[1736822219534,12.83546569,183.37,183.25,4.62210871]
[1736822219734,12.83546569,183.4,183.27,12.83546569]
[1736822220331,2.7277,183.38,183.31,2.7285]
[1736822221037,12.83546569,183.37,183.25,7.4338539]
[1736822221838,2.7284,183.32,183.26,2.7293]
[1736822222232,2.7278,183.37,183.28,12.83546569]
[1736822222432,12.83546569,183.4,183.28,12.83546569]
[1736822222938,2.7277,183.38,183.31,2.7284]
[1736822223138,12.83546569,183.4,183.28,12.83546569]
[1736822223339,12.83546569,183.37,183.25,12.83546569]
[1736822226933,12.83546569,183.34,183.22,18.59546569]
[1736822227135,4.9245,183.33,183.22,18.59546569]
[1736822227735,2.7288,183.3,183.23,2.7297]
[1736822228437,12.83546569,183.31,183.2,102.08]
[1736822228639,12.83546569,183.31,183.21,2.73]
[1736822229241,2.729,183.28,183.21,2.73]
[1736822229442,2.729,183.28,183.22,2.7299]
[1736822230038,12.83546569,183.31,183.2,102.08]
[1736822230244,12.83546569,183.31,183.22,12.83546569]
[1736822231144,15.56406569,183.31,183.25,2.7295]
[1736822232141,2.7288,183.3,183.25,2.7295]
[1736822235847,3.3491,183.33,183.25,12.83546569]
[1736822236147,14.55826569,183.41,183.28,12.83546569]
[1736822236348,3.2872,183.4,183.28,12.83546569]
[1736822236646,1.7228,183.41,183.31,12.83546569]
[1736822236840,1.7228,183.41,183.34,12.83546569]
[1736822237037,12.83546569,183.44,183.34,12.83546569]
[1736822237244,3.2872,183.46,183.37,12.83546569]
[1736822237644,1.7228,183.5,183.4,12.83546569]
[1736822237943,1.7228,183.5,183.43,12.83546569]
[1736822238143,2.7261,183.48,183.41,8.487]
[1736822238349,1.7228,183.5,183.41,5.76]
[1736822240449,2.7264,183.46,183.41,5.76]
[1736822240650,2.7264,183.46,183.39,2.7274]
[1736822241446,2.7263,183.47,183.4,2.7273]
[1736822242548,2.7264,183.46,183.4,2.7273]
[1736822243746,12.83546569,183.48,183.35,102.12]
[1736822243747,12.83546569,183.48,183.35,107.88]
[1736822244254,2.7267,183.45,183.36,2.7279]
[1736822244453,12.83546569,183.48,183.36,2.7279]
[1736822244649,12.83546569,183.48,183.35,102.12]
[1736822244846,7.4828,183.5,183.35,102.12]
[1736822245654,2.7264,183.47,183.4,2.7273]
[1736822245855,2.7264,183.47,183.35,102.12]
[1736822246356,2.7261,183.48,183.4,15.56256569]
[1736822246552,2.7261,183.48,183.4,12.83546569]
[1736822246951,1.7228,183.5,183.4,12.83546569]
[1736822247151,1.7228,183.5,183.37,12.83546569]
[1736822247445,12.83546569,183.48,183.37,12.83546569]
[1736822248149,2.7265,183.46,183.39,2.7273]
[1736822249753,12.83546569,183.45,183.35,102.12]
[1736822250152,12.83546569,183.42,183.33,5.66065479]
[1736822252258,3.3832,183.44,183.36,12.83546569]
[1736822252555,6.1099,183.44,183.38,2.7275]
[1736822252749,3.3832,183.44,183.38,2.7275]
[1736822252949,2.7268,183.43,183.38,2.7275]
[1736822253150,3.3832,183.44,183.38,2.7275]
[1736822253556,6.11,183.44,183.38,2.7276]
[1736822254354,2.7269,183.43,183.38,2.7276]
[1736822254560,12.83546569,183.42,183.33,5.66065479]
[1736822254960,3.3832,183.44,183.33,5.66065479]
[1736822254961,12.83546569,183.39,183.33,5.66065479]
[1736822255259,12.83546569,183.39,183.3,2.7287]
[1736822255454,2.7278,183.37,183.29,37.28102808]
[1736822255961,2.7279,183.36,183.3,2.7287]
[1736822256159,12.83546569,183.39,183.29,37.28102808]
[1736822256661,2.7278,183.37,183.31,2.7286]
[1736822258959,2.7279,183.36,183.29,2.7288]
[1736822259664,2.7279,183.36,183.3,2.7287]
[1736822262564,1.6743,183.38,183.27,12.83546569]
[1736822262765,12.83546569,183.42,183.3,12.83546569]
[1736822264667,2.7275,183.39,183.31,2.7285]
[1736822264863,12.83546569,183.42,183.31,2.7285]
[1736822265466,2.7277,183.38,183.31,2.7285]
[1736822265967,2.7277,183.37,183.31,2.7285]
[1736822266164,12.83546569,183.42,183.3,12.83546569]
[1736822266359,2.7274,183.39,183.32,2.7283]
[1736822266561,12.83546569,183.42,183.32,2.7283]
[1736822266868,2.7276,183.38,183.32,2.7283]
[1736822267260,2.7276,183.38,183.33,2.7283]
[1736822267463,12.83546569,183.42,183.3,12.83546569]
[1736822267862,5.76,183.43,183.33,2.7283]
[1736822268069,12.83546569,183.42,183.3,12.83546569]
[1736822268563,2.7275,183.39,183.34,2.728]
[1736822269073,12.83546569,183.42,183.3,12.83546569]
[1736822269264,12.83546569,183.42,183.36,2.7278]
[1736822269463,12.83546569,183.42,183.33,12.83546569]
[1736822269664,4.9713,183.44,183.33,12.83546569]
[1736822270667,7.6981,183.44,183.33,12.83546569]
[1736822270872,7.6981,183.44,183.33,18.59546569]
[1736822272464,4.9713,183.44,183.33,18.59546569]
[1736822272659,2.727,183.42,183.36,2.7278]
[1736822273165,4.9713,183.44,183.36,2.7278]
[1736822273365,4.9713,183.44,183.34,2.728]
[1736822273568,12.83546569,183.42,183.34,2.728]
[1736822274170,2.7273,183.4,183.34,2.728]
[1736822276069,2.7273,183.4,183.35,2.7279]
[1736822276274,2.7271,183.41,183.35,2.7279]
[1736822280578,2.7269,183.43,183.33,12.83546569]
[1736822281375,5.76,183.52,183.39,12.83546569]
[1736822281577,3.2737,183.5,183.42,2.7268]
[1736822281772,3.2737,183.5,183.39,12.83546569]
[1736822281970,3.2737,183.5,183.42,12.83546569]
[1736822282175,1.6683,183.53,183.45,2.7265]
[1736822282373,1.6683,183.53,183.42,12.83546569]
[1736822282579,2.7255,183.52,183.42,12.83546569]
[1736822283284,2.7255,183.52,183.45,2.7265]
[1736822284181,1.6683,183.53,183.44,2.7267]
[1736822285383,1.6683,183.53,183.42,12.83546569]
[1736822286084,1.6683,183.53,183.47,2.7262]
[1736822287685,4.3936,183.53,183.47,2.7262]
[1736822287884,12.83546569,183.51,183.42,12.83546569]
[1736822288385,1.6683,183.53,183.42,12.83546569]
[1736822288887,1.6683,183.53,183.47,2.7261]
[1736822289089,2.7253,183.54,183.45,12.83546569]
[1736822289297,16.10916569,183.57,183.45,12.83546569]
[1736822289481,16.10916569,183.57,183.47,2.7262]
[1736822289786,1.613,183.56,183.47,2.7262]
[1736822290391,1.613,183.56,183.45,12.83546569]
[1736822290790,2.7252,183.55,183.45,12.83546569]
[1736822291090,2.7252,183.55,183.49,2.7259]
[1736822292387,1.613,183.56,183.49,2.7259]
[1736822292593,2.7252,183.54,183.49,2.7259]
[1736822295490,4.338,183.56,183.5,2.7256]
[1736822295790,428.63366966,183.74,183.44,5.76]
[1736822295791,195.55543166,183.73,183.48,12.83546569]
[1736822295995,195.55543166,183.73,183.54,12.83546569]
[1736822295996,3.3613,183.67,183.54,12.83546569]
[1736822296295,16.19676569,183.67,183.54,12.83546569]
[1736822296686,16.19676569,183.67,183.57,12.83546569]
[1736822297386,3.3613,183.67,183.62,2.724]
[1736822297589,4.3972,183.68,183.62,2.724]
[1736822298396,4.3972,183.68,183.6,12.83546569]
[1736822298595,4.3972,183.68,183.6,15.55956569]
[1736822299100,12.83546569,183.71,183.62,2.7239]
[1736822300093,2.7231,183.69,183.6,12.83546569]
[1736822300300,2.7231,183.69,183.63,2.7238]
[1736822300987,12.83546569,183.71,183.6,12.83546569]
[1736822301298,12.83546569,183.71,183.52,105.6647]
[1736822301499,12.83546569,183.71,183.57,12.83546569]
[1736822301796,2.7235,183.66,183.59,2.7243]
[1736822302294,12.83546569,183.68,183.57,12.83546569]
[1736822302499,2.7239,183.63,183.58,2.7246]
[1736822303399,2.7239,183.63,183.57,15.56016569]
[1736822303997,2.7237,183.64,183.57,15.56016569]
[1736822305591,3.3289,183.67,183.57,12.83546569]
[1736822305792,3.3289,183.67,183.54,12.83546569]
[1736822305793,12.83546569,183.65,183.54,12.83546569]
[1736822306591,2.724,183.62,183.55,2.725]
[1736822307097,2.724,183.62,183.54,12.83546569]
[1736822308198,2.724,183.62,183.56,2.7249]
[1736822308399,2.7239,183.63,183.54,12.83546569]
[1736822308797,12.83546569,183.65,183.52,105.6647]
[1736822308992,12.83546569,183.65,183.52,118.50016569]
[1736822309197,1.6291,183.66,183.56,2.7248]
[1736822309796,1.6291,183.66,183.55,15.56046569]
[1736822309999,12.83546569,183.64,183.55,15.56046569]
[1736822310401,12.83546569,183.64,183.55,12.83546569]
[1736822310702,2.724,183.62,183.56,2.7249]
[1736822311112,2.7233,183.67,183.61,12.83546569]
[1736822311302,12.83546569,183.73,183.61,12.83546569]
[1736822311599,191.0,183.76,183.64,12.83546569]
[1736822311600,203.83546569,183.76,183.64,12.83546569]
[1736822311800,191.0,183.76,183.67,12.83546569]
[1736822312105,3.3995,183.77,183.67,12.83546569]
[1736822312307,3.3995,183.77,183.7,12.83546569]
[1736822312500,205.53246569,183.8,183.7,12.83546569]
[1736822312501,192.697,183.8,183.7,12.83546569]
[1736822312902,2.7217,183.78,183.72,2.7225]
[1736822313098,192.697,183.8,183.7,12.83546569]
[1736822313303,3.3995,183.82,183.73,12.83546569]
[1736822314004,2.7212,183.81,183.74,2.7222]
[1736822314502,2.7217,183.78,183.71,2.7225]
[1736822314709,12.83546569,183.8,183.7,12.83546569]
[1736822315606,2.7219,183.76,183.7,12.83546569]
[1736822315904,12.83546569,183.77,183.67,114.77546569]
[1736822316900,2.7221,183.76,183.69,2.7229]
[1736822317098,5.74,183.79,183.69,2.7229]
[1736822317300,5.74,183.79,183.67,114.77546569]
[1736822317602,2.7218,183.77,183.7,2.7228]
[1736822318608,5.74,183.79,183.68,2.723]
[1736822319106,1.6846,183.78,183.68,2.723]
[1736822319604,1.6846,183.78,183.71,2.7226]
[1736822319900,1.6846,183.78,183.67,114.77546569]
[1736822320705,2.7221,183.75,183.67,114.77546569]
[1736822321603,12.83546569,183.77,183.67,117.49856569]
[1736822321798,12.83546569,183.77,183.67,101.94]
[1736822322608,2.7224,183.73,183.67,101.94]
[1736822322807,12.83546569,183.74,183.67,101.94]
[1736822323002,12.83546569,183.74,183.63,12.83546569]
[1736822323307,2.7228,183.7,183.64,2.7236]
[1736822323509,3.2765,183.73,183.63,12.83546569]
[1736822323800,2.7228,183.71,183.65,2.7235]
[1736822324001,3.2765,183.73,183.63,12.83546569]
[1736822324608,2.7229,183.7,183.64,2.7237]
[1736822324805,3.2765,183.73,183.63,12.83546569]
[1736822325006,12.83546569,183.71,183.61,5.48986325]
[1736822325500,2.7231,183.68,183.61,5.48986325]
[1736822325910,2.7231,183.68,183.61,8.21386325]
[1736822327306,12.83546569,183.71,183.61,8.21386325]
[1736822327699,2.7231,183.68,183.61,8.21386325]
[1736822329008,2.7231,183.68,183.62,2.7239]
[1736822330107,12.83546569,183.71,183.61,5.48986325]
[1736822330306,2.7228,183.71,183.64,2.7237]
[1736822330609,194.2765,183.73,183.63,12.83546569]
[1736822330810,2.7226,183.72,183.65,2.7234]
[1736822331410,2.7228,183.7,183.64,2.7237]
[1736822332406,191.0,183.72,183.55,29.7354156]
[1736822332608,14.46556569,183.69,183.55,42.57088129]
[1736822332812,12.83546569,183.66,183.55,20.26931959]
[1736822333012,2.724,183.63,183.56,2.7248]
[1736822333213,2.724,183.63,183.55,20.26931959]
[1736822333717,12.83546569,183.66,183.55,12.83546569]
[1736822334011,20.20556569,183.69,183.55,12.83546569]
[1736822334909,2.7237,183.65,183.55,12.83546569]
[1736822335408,2.7237,183.65,183.58,2.7245]
[1736822336213,7.3701,183.69,183.58,12.83546569]
[1736822336407,20.20556569,183.69,183.58,12.83546569]
[1736822336607,2.7232,183.68,183.61,2.7241]
[1736822336813,1.6301,183.69,183.61,2.7241]
[1736822338020,2.7233,183.67,183.61,2.7241]
[1736822338221,2.7233,183.67,183.62,2.724]
[1736822339419,14.46556569,183.69,183.58,12.83546569]
[1736822339616,12.83546569,183.66,183.55,12.83546569]
[1736822340021,2.724,183.63,183.57,2.7246]
[1736822340321,2.724,183.63,183.55,12.83546569]
[1736822340717,2.724,183.63,183.57,2.7247]
[1736822341015,1.6301,183.69,183.55,12.83546569]
[1736822341224,1.6301,183.69,183.58,12.83546569]
[1736822341416,1.6301,183.69,183.61,12.83546569]
[1736822341617,2.7233,183.68,183.61,12.83546569]
[1736822341818,1.6301,183.69,183.61,15.55956569]
[1736822343221,2.7233,183.67,183.61,15.55956569]
[1736822344523,2.7233,183.67,183.62,2.724]
[1736822345820,2.7233,183.67,183.61,12.83546569]
[1736822345821,2.7235,183.66,183.61,12.83546569]
[1736822346622,2.7235,183.66,183.61,15.55956569]
[1736822347819,2.7238,183.64,183.58,15.55996569]
[1736822348218,2.7238,183.64,183.58,12.83546569]
[1736822348930,1.6301,183.69,183.58,12.83546569]
[1736822349225,2.7234,183.67,183.58,12.83546569]
[1736822349522,2.7234,183.67,183.62,2.724]
[1736822350022,2.7234,183.67,183.58,12.83546569]
[1736822350223,2.7234,183.67,183.62,2.7241]
[1736822350925,2.7232,183.69,183.63,2.724]
[1736822351129,2.7232,183.69,183.61,12.83546569]
[1736822351326,16.11196569,183.73,183.61,12.83546569]
[1736822351526,16.11196569,183.73,183.65,2.7236]
[1736822351527,2.7229,183.7,183.65,2.7236]
[1736822352415,3.2765,183.73,183.64,12.83546569]
[1736822352619,203.83546569,183.76,183.67,12.83546569]
[1736822353217,2.7226,183.73,183.68,2.7231]
[1736822353721,203.83546569,183.76,183.67,12.83546569]
[1736822354023,2.7227,183.72,183.67,15.55876569]
[1736822355535,203.83546569,183.76,183.65,2.7237]
[1736822356027,191.0,183.76,183.71,2.7227]
[1736822356926,2.7221,183.75,183.7,2.7229]
[1736822357122,191.0,183.76,183.7,2.7229]
[1736822357620,193.722,183.76,183.7,2.7229]
[1736822358018,2.722,183.76,183.7,2.7229]
[1736822358522,2.7224,183.73,183.68,2.723]
[1736822358822,12.83546569,183.76,183.64,12.83546569]
[1736822359320,12.83546569,183.76,183.66,2.7234]
[1736822360229,2.7227,183.72,183.66,2.7234]
[1736822360430,2.7227,183.72,183.67,2.7233]
[1736822360929,2.7227,183.72,183.66,2.7234]
[1736822361230,2.7227,183.72,183.64,12.83546569]
[1736822362128,2.7227,183.72,183.66,2.7234]
[1736822365130,2.7224,183.73,183.67,2.7232]
[1736822365327,1.6316,183.77,183.67,12.83546569]
[1736822366331,1.6316,183.77,183.7,12.83546569]
[1736822367327,2.7221,183.75,183.7,15.55816569]
[1736822367833,2.7221,183.75,183.71,2.7227]
[1736822369833,1.6316,183.77,183.71,2.7227]
[1736822370031,2.722,183.76,183.72,2.7225]
[1736822370332,3.2976,183.81,183.7,12.83546569]
[1736822370532,5.0225,183.81,183.7,12.83546569]
[1736822370834,2.7218,183.77,183.73,2.7222]
[1736822371022,5.0225,183.81,183.7,12.83546569]
[1736822371430,2.7218,183.78,183.7,12.83546569]
[1736822371932,2.7218,183.77,183.73,2.7223]
[1736822372834,2.7218,183.77,183.74,2.7222]
[1736822374134,5.0225,183.81,183.73,12.83546569]
[1736822374838,5.0225,183.81,183.7,5.74]
[1736822376242,2.7219,183.76,183.72,2.7225]
[1736822378339,2.7219,183.76,183.7,5.74]
[1736822378649,12.83546569,183.79,183.66,12.83546569]
[1736822378947,18.57546569,183.79,183.66,12.83546569]
[1736822379654,5.74,183.79,183.69,2.723]
[1736822379848,12.83546569,183.78,183.69,2.723]
[1736822380340,2.7224,183.74,183.69,2.723]
[1736822380544,12.83546569,183.78,183.62,1.5469]
[1736822380545,12.83546569,183.75,183.63,12.83546569]
[1736822380747,3.2697,183.73,183.63,12.83546569]
[1736822381639,2.7229,183.7,183.63,12.83546569]
[1736822381843,2.7229,183.7,183.65,2.7236]
[1736822382044,3.2697,183.73,183.63,12.83546569]
[1736822382248,4.3209,183.74,183.66,12.83546569]
[1736822382445,194.2532,183.78,183.66,12.83546569]
[1736822382649,3.2532,183.78,183.69,12.83546569]
[1736822384042,3.2532,183.78,183.61,8.9968539]
[1736822384043,3.2532,183.78,183.72,12.83546569]
[1736822384350,2.7221,183.76,183.72,12.83546569]
[1736822385147,3.2532,183.78,183.72,12.83546569]
[1736822385351,1.6017,183.82,183.72,12.83546569]
[1736822385853,2.7215,183.79,183.74,2.7222]
[1736822386561,2.7217,183.78,183.73,2.7224]
[1736822386854,14.43716569,183.82,183.72,12.83546569]
[1736822387447,2.7215,183.79,183.72,12.83546569]
[1736822387653,14.43716569,183.82,183.72,12.83546569]
[1736822387952,14.43716569,183.82,183.69,12.83546569]
[1736822388148,2.7224,183.73,183.69,15.55836569]
[1736822389654,12.83546569,183.79,183.69,12.83546569]
[1736822389855,12.83546569,183.76,183.66,12.83546569]
[1736822390051,4.9762,183.75,183.66,12.83546569]
[1736822391755,2.7228,183.71,183.66,12.83546569]
[1736822391953,4.9762,183.75,183.66,12.83546569]
[1736822392451,4.9762,183.75,183.63,12.83546569]
[1736822392658,12.83546569,183.73,183.61,155.86406092]
[1736822392860,12.83546569,183.73,183.61,168.69952661]
[1736822393260,12.83546569,183.73,183.61,171.42352661]
[1736822393561,2.7234,183.67,183.61,171.42352661]
[1736822393957,12.83546569,183.73,183.61,168.69952661]
[1736822394262,2.7231,183.68,183.61,168.69952661]
[1736822394760,4.9762,183.75,183.64,15.55916569]
[1736822395061,4.9762,183.75,183.64,12.83546569]
[1736822396159,2.7227,183.71,183.66,2.7234]
[1736822396763,2.7227,183.71,183.65,2.7236]
[1736822399564,4.9762,183.75,183.64,12.83546569]
[1736822400165,2.7226,183.72,183.64,12.83546569]
[1736822400466,4.9762,183.75,183.64,12.83546569]
[1736822400768,2.7233,183.67,183.64,12.83546569]
[1736822401666,4.9762,183.75,183.64,12.83546569]
[1736822401862,2.7231,183.69,183.64,12.83546569]
[1736822403360,4.9762,183.75,183.64,12.83546569]
[1736822403561,2.7233,183.67,183.63,2.7237]
[1736822405359,2.7233,183.67,183.61,114.73546569]
[1736822405562,2.7233,183.67,183.62,2.724]
[1736822407071,2.7234,183.66,183.61,117.45966569]
[1736822408175,2.7236,183.65,183.61,114.73546569]
[1736822408770,2.7238,183.64,183.61,101.9]
[1736822411372,2.7238,183.64,183.59,2.7244]
[1736822411567,12.83546569,183.7,183.6,2.7243]
[1736822411778,12.83546569,183.7,183.58,12.83546569]
[1736822412368,5.74,183.71,183.58,12.83546569]
[1736822412569,2.7236,183.66,183.61,2.7241]
[1736822413670,2.7236,183.65,183.61,2.7241]
[1736822414069,12.83546569,183.71,183.61,12.83546569]
[1736822414276,191.0,183.74,183.64,12.83546569]
[1736822414476,4.9762,183.75,183.67,12.83546569]
[1736822414879,4.9762,183.75,183.69,2.723]
[1736822415372,4.9762,183.75,183.64,12.83546569]
[1736822415570,12.83546569,183.74,183.61,21.68136569]
[1736822415875,12.83546569,183.74,183.61,18.57546569]
[1736822416577,203.83546569,183.74,183.63,2.7238]
[1736822416877,203.83546569,183.74,183.61,18.57546569]
[1736822417570,203.83546569,183.74,183.62,2.724]
[1736822419077,2.7233,183.68,183.63,2.7239]
[1736822419470,203.83546569,183.74,183.64,12.83546569]
[1736822420677,203.83546569,183.74,183.65,2.7235]
[1736822420678,2.723,183.7,183.65,2.7235]
[1736822420877,2.723,183.7,183.64,12.83546569]
[1736822421177,2.7227,183.72,183.64,12.83546569]
[1736822421874,2.7227,183.72,183.67,12.83546569]
[1736822422076,2.7223,183.74,183.67,12.83546569]
[1736822422276,18.57546569,183.8,183.67,12.83546569]
[1736822422472,16.19866569,183.8,183.67,12.83546569]
[1736822422673,2.7221,183.76,183.7,2.7227]
[1736822422874,16.19866569,183.8,183.7,2.7227]
[1736822423569,2.7221,183.75,183.7,2.7227]
[1736822431381,2.7221,183.75,183.71,8.19386723]
[1736822431784,8.19386723,183.75,183.67,2.7233]
[1736822432085,8.19386723,183.71,183.65,8.19386723]
[1736822432284,8.19386723,183.69,183.63,8.19386723]
[1736822432977,2.7232,183.68,183.63,8.19386723]
[1736822433274,8.19386723,183.71,183.65,8.19386723]
[1736822433482,5.0742,183.73,183.63,12.81054266]
[1736822434278,2.7228,183.71,183.65,2.7235]
[1736822435487,2.7228,183.7,183.65,2.7235]
[1736822436883,2.7228,183.7,183.63,12.81054266]
[1736822437079,5.0742,183.73,183.66,2.7234]
[1736822437296,56.42231986,183.8,183.69,12.81054266]
[1736822437586,43.6117772,183.8,183.72,12.81054266]
[1736822437787,2.7217,183.78,183.72,12.81054266]
[1736822438290,18.55054266,183.83,183.72,12.81054266]
[1736822438589,5.0047,183.84,183.72,12.81054266]
[1736822440089,2.7214,183.8,183.75,2.722]
[1736822442795,2.7218,183.78,183.73,2.7224]
[1736822443197,5.0047,183.84,183.72,12.81054266]
[1736822443496,5.0047,183.84,183.68,2.0559]
[1736822443497,5.0047,183.84,183.75,12.81054266]
[1736822443698,412.25366966,183.96,183.78,12.81054266]
[1736822443894,12.81054266,183.89,183.78,12.81054266]
[1736822444198,2.721,183.83,183.78,15.53204266]
[1736822444794,2.721,183.83,183.78,12.81054266]
[1736822444988,2.7207,183.85,183.78,12.81054266]
[1736822445197,3.3832,183.9,183.81,12.81054266]
[1736822445392,2.7205,183.86,183.82,2.721]
[1736822445593,3.3832,183.9,183.78,12.81054266]
[1736822445796,12.81054266,183.89,183.78,12.81054266]
[1736822445997,14.47264266,183.89,183.78,12.81054266]
[1736822447196,2.721,183.83,183.78,12.81054266]
[1736822447399,14.47264266,183.89,183.78,12.81054266]
[1736822447800,2.7211,183.83,183.78,12.81054266]
[1736822448391,2.7213,183.81,183.75,12.81054266]
[1736822448597,12.81054266,183.86,183.75,15.53264266]
[1736822449405,12.81054266,183.86,183.75,12.81054266]
[1736822449603,18.55054266,183.86,183.7,2.0506]
[1736822449808,12.81054266,183.83,183.71,12.81054266]
[1736822450101,2.7218,183.78,183.72,2.7225]
[1736822451204,2.7219,183.77,183.71,12.81054266]
[1736822451403,12.81054266,183.8,183.68,12.81054266]
[1736822451702,2.7221,183.76,183.7,2.7229]
[1736822454707,2.7224,183.74,183.68,15.53364266]
[1736822455001,1.6811,183.79,183.68,15.53364266]
[1736822455404,1.6811,183.79,183.69,2.7229]
[1736822455798,1.6811,183.79,183.68,12.81054266]
[1736822456405,1.6811,183.79,183.71,12.81054266]
[1736822457105,2.7222,183.76,183.71,12.81054266]
[1736822457711,2.7217,183.78,183.72,2.7225]
[1736822458598,114.69054266,183.96,183.74,12.81054266]
[1736822458801,2.7215,183.8,183.74,12.81054266]
[1736822459803,2.7216,183.79,183.74,15.53284266]
[1736822460406,191.0,183.87,183.77,12.81054266]
[1736822460908,2.7211,183.83,183.78,2.7217]
[1736822461304,191.0,183.87,183.77,12.81054266]
[1736822462701,191.0,183.87,183.77,15.53234266]
[1736822463312,2.7211,183.83,183.77,15.53234266]
[1736822463810,2.7211,183.82,183.77,15.53234266]
[1736822464716,191.0,183.87,183.77,12.81054266]
[1736822464910,12.81054266,183.85,183.74,12.81054266]
[1736822465115,1.5806,183.84,183.74,12.81054266]
[1736822465614,3.2065,183.83,183.74,12.81054266]
[1736822465911,2.7216,183.78,183.74,15.53274266]
[1736822467717,2.7216,183.78,183.74,12.81054266]
[1736822468018,3.2065,183.83,183.74,12.81054266]
[1736822468315,2.7212,183.81,183.77,12.81054266]
[1736822468516,3.2065,183.83,183.77,12.81054266]
[1736822468810,2.721,183.82,183.77,12.81054266]
[1736822469914,2.721,183.82,183.77,15.53224266]
[1736822472820,194.3596,183.87,183.77,12.81054266]
[1736822473020,2.7207,183.84,183.78,2.7215]
[1736822473421,194.3596,183.87,183.78,2.7215]
[1736822473721,2.7209,183.83,183.78,2.7215]
[1736822474124,1.5648,183.88,183.8,12.81054266]
[1736822474723,2.7207,183.85,183.8,15.53184266]
[1736822479424,1.5648,183.88,183.8,12.81054266]
[1736822479619,1.5648,183.88,183.78,2.7216]
[1736822479823,3.2941,183.87,183.77,12.81054266]
[1736822480327,3.2941,183.87,183.77,15.53214266]
[1736822480627,3.2941,183.87,183.77,12.81054266]
[1736822481626,2.7208,183.84,183.8,2.7212]
[1736822481826,3.2941,183.87,183.77,12.81054266]
[1736822482431,2.7208,183.84,183.79,2.7214]
[1736822484437,3.2941,183.87,183.77,12.81054266]
[1736822484730,3.2941,183.87,183.81,2.7212]
[1736822484731,2.7204,183.86,183.81,2.7212]
[1736822485326,4.2849,183.88,183.84,8.18233615]
[1736822485840,2.72,183.89,183.86,8.18233615]
[1736822486042,11.58323615,183.94,183.88,8.18233615]
[1736822486841,2.7198,183.91,183.88,8.18233615]
[1736822487236,2.7199,183.9,183.88,8.18233615]
[1736822487433,2.7199,183.9,183.85,2.7205]
[1736822487632,2.7199,183.9,183.84,12.78085212]
[1736822488734,3.4009,183.94,183.84,12.78085212]
[1736822488936,2.7196,183.92,183.84,12.78085212]
[1736822489640,2.7196,183.92,183.86,2.7204]
[1736822490940,3.4009,183.94,183.86,2.7204]
[1736822491139,2.7197,183.91,183.86,2.7204]
[1736822493443,2.7197,183.91,183.84,12.78085212]
[1736822493444,2.7201,183.89,183.84,15.50155212]
[1736822493647,12.78085212,183.93,183.81,12.78085212]
[1736822494337,12.78085212,183.9,183.78,12.78085212]
[1736822494538,1.6341,183.89,183.78,12.78085212]
[1736822494738,2.7207,183.85,183.8,2.7212]
[1736822494937,1.6341,183.89,183.78,12.78085212]
[1736822495338,2.7203,183.87,183.82,2.721]
[1736822496735,2.7203,183.87,183.81,12.78085212]
[1736822496736,1.6341,183.89,183.81,12.78085212]
[1736822496939,2.7201,183.88,183.83,2.7208]
[1736822502147,12.78085212,183.93,183.81,12.78085212]
[1736822502352,2.7197,183.91,183.84,12.78085212]
[1736822503137,2.7197,183.91,183.86,2.7204]